[Event "Blixt-SM 2025"]
[Site "Norrköping, Sweden"]
[Date "2025.09.26"]
[Round "8.6"]
[White "Muntean, Victor"]
[Black "Berovski, Krum"]
[Result "0-1"]
[TimeControl "3 min + 2 sec/move"]
[WhiteElo "2151"]
[BlackElo "2344"]

1. e4 {[%clk 00:03:03]} {[%emt 00:00:01]} e6 {[%clk 00:03:03]} {[%emt
00:00:01]} 2. Qe2 {[%clk 00:03:04]} {[%emt 00:00:02]} e5 {[%clk 00:03:00]}
{[%emt 00:00:05]} 3. f4 {[%clk 00:03:04]} {[%emt 00:00:02]} exf4 {[%clk
00:02:55]} {[%emt 00:00:06]} 4. d4 {[%clk 00:03:05]} Qh4+ {[%clk 00:02:41]}
{[%emt 00:00:16]} 5. Qf2 {[%clk 00:03:03]} {[%emt 00:00:03]} Qxf2+ {[%clk
00:02:40]} {[%emt 00:00:04]} 6. Kxf2 {[%clk 00:03:04]} Nf6 {[%clk 00:02:21]}
{[%emt 00:00:21]} 7. Bd3 {[%clk 00:02:57]} {[%emt 00:00:09]} d5 {[%clk
00:02:14]} {[%emt 00:00:08]} 8. e5 {[%clk 00:02:45]} {[%emt 00:00:15]} Ng4+
{[%clk 00:01:36]} {[%emt 00:00:40]} 9. Ke2 {[%clk 00:02:45]} c5 {[%clk
00:01:35]} {[%emt 00:00:04]} 10. c3 {[%clk 00:02:31]} {[%emt 00:00:15]} Nc6
{[%clk 00:01:35]} {[%emt 00:00:02]} 11. Nf3 {[%clk 00:02:32]} {[%emt 00:00:02]}
cxd4 {[%clk 00:01:31]} {[%emt 00:00:07]} 12. cxd4 {[%clk 00:02:33]} Nb4 {[%clk
00:01:30]} {[%emt 00:00:02]} 13. Nc3 {[%clk 00:02:01]} {[%emt 00:00:34]} Nxd3
{[%clk 00:01:30]} {[%emt 00:00:02]} 14. Nxd5 {[%clk 00:01:51]} {[%emt
00:00:13]} Ndf2 {[%clk 00:01:29]} {[%emt 00:00:02]} 15. Re1 {[%clk 00:01:25]}
{[%emt 00:00:28]} Bf5 {[%clk 00:01:21]} {[%emt 00:00:10]} 16. Nc7+ {[%clk
00:01:19]} {[%emt 00:00:08]} Kd7 {[%clk 00:01:22]} 17. Nxa8 {[%clk 00:01:20]}
{[%emt 00:00:01]} Bd3+ {[%clk 00:01:23]} 18. Kd2 {[%clk 00:01:21]} Bb4# {[%clk
00:01:25]} 0-1

[Event "Blixt-SM 2025"]
[Site "Norrköping, Sweden"]
[Date "2025.09.26"]
[Round "10.2"]
[White "Rogoz, Vladyslav"]
[Black "Carlsson, Ludvig"]
[Result "0-1"]
[TimeControl "3 min + 2 sec/move"]
[BlackTitle "IM"]
[WhiteElo "2108"]
[BlackElo "2389"]

1. d4 {[%clk 00:03:03]} d5 {[%emt 00:00:01]} 2. c4 e5 {[%clk 00:03:05]} 3. dxe5
{[%clk 00:03:05]} {[%emt 00:00:01]} Ne7 {[%clk 00:03:06]} 4. Nf3 {[%clk
00:03:02]} {[%emt 00:00:07]} Nbc6 {[%clk 00:03:07]} 5. Bf4 {[%clk 00:03:02]}
{[%emt 00:00:02]} Be6 {[%clk 00:03:06]} {[%emt 00:00:03]} 6. c5 {[%clk
00:02:53]} {[%emt 00:00:11]} Ng6 {[%clk 00:03:05]} {[%emt 00:00:03]} 7. Bg5
{[%clk 00:02:51]} {[%emt 00:00:04]} Be7 {[%clk 00:03:06]} {[%emt 00:00:02]} 8.
Bxe7 {[%clk 00:02:42]} {[%emt 00:00:11]} Qxe7 {[%clk 00:03:06]} {[%emt
00:00:01]} 9. Qb3 {[%clk 00:02:30]} {[%emt 00:00:14]} Qxc5 {[%clk 00:02:55]}
{[%emt 00:00:13]} 10. Nbd2 {[%clk 00:02:26]} {[%emt 00:00:05]} Ngxe5 {[%clk
00:02:43]} {[%emt 00:00:14]} 11. Nxe5 {[%clk 00:02:12]} {[%emt 00:00:17]} Nxe5
{[%clk 00:02:43]} {[%emt 00:00:02]} 12. Qg3 {[%clk 00:02:07]} {[%emt 00:00:06]}
d4 {[%clk 00:02:36]} {[%emt 00:00:10]} 13. Qxg7 {[%clk 00:01:58]} {[%emt
00:00:10]} O-O-O {[%clk 00:02:35]} {[%emt 00:00:03]} 14. b4 {[%clk 00:01:49]}
{[%emt 00:00:12]} Qc3 {[%clk 00:02:33]} {[%emt 00:00:04]} 15. Rd1 {[%clk
00:01:46]} {[%emt 00:00:05]} d3 {[%clk 00:02:23]} {[%emt 00:00:12]} 16. Qg3
{[%clk 00:01:37]} {[%emt 00:00:10]} Rhg8 {[%clk 00:02:17]} {[%emt 00:00:09]} 17.
Qe3 {[%clk 00:01:29]} {[%emt 00:00:08]} Rge8 {[%clk 00:01:49]} {[%emt
00:00:31]} 18. Qxa7 {[%clk 00:01:25]} {[%emt 00:00:06]} Bg4 {[%clk 00:01:46]}
{[%emt 00:00:05]} 19. Qa8+ {[%clk 00:01:17]} {[%emt 00:00:11]} Kd7 {[%clk
00:01:46]} {[%emt 00:00:01]} 20. Qxb7 {[%clk 00:01:14]} {[%emt 00:00:06]} dxe2
{[%clk 00:01:41]} {[%emt 00:00:07]} 21. f3 {[%clk 00:00:18]} {[%emt 00:00:58]}
Nd3# {[%emt 00:00:03]} 0-1

[Event "Blixt-SM 2025"]
[Site "Norrköping, Sweden"]
[Date "2025.09.26"]
[Round "11.8"]
[White "Wernberg, Hugo"]
[Black "Bjorklund, Thomas"]
[Result "1-0"]
[TimeControl "3 min + 2 sec/move"]
[WhiteTitle "FM"]
[WhiteElo "2285"]
[BlackElo "2103"]

1. g3 {[%clk 00:03:02]} {[%emt 00:00:02]} c6 {[%clk 00:03:04]} 2. Bg2 {[%clk
00:03:01]} {[%emt 00:00:02]} d5 {[%clk 00:03:05]} {[%emt 00:00:01]} 3. Nf3
{[%clk 00:03:03]} Nf6 {[%clk 00:03:06]} {[%emt 00:00:01]} 4. c4 {[%clk
00:03:04]} e6 {[%clk 00:03:07]} 5. b3 {[%clk 00:03:05]} {[%emt 00:00:01]} g6
{[%clk 00:03:07]} {[%emt 00:00:03]} 6. Bb2 {[%clk 00:03:06]} Bg7 {[%clk
00:03:08]} 7. O-O {[%clk 00:03:03]} {[%emt 00:00:05]} O-O {[%clk 00:03:08]}
{[%emt 00:00:02]} 8. d3 {[%clk 00:02:55]} {[%emt 00:00:11]} b6 {[%clk
00:03:07]} {[%emt 00:00:03]} 9. Nbd2 {[%clk 00:02:52]} {[%emt 00:00:04]} Bb7
{[%clk 00:03:08]} 10. a3 {[%clk 00:02:53]} {[%emt 00:00:01]} Nbd7 {[%clk
00:03:09]} 11. Qc2 {[%clk 00:02:54]} {[%emt 00:00:01]} c5 {[%clk 00:03:10]}
{[%emt 00:00:02]} 12. Ne5 {[%clk 00:02:38]} {[%emt 00:00:17]} Nxe5 {[%clk
00:02:59]} {[%emt 00:00:13]} 13. Bxe5 {[%clk 00:02:38]} {[%emt 00:00:02]} Nd7
{[%clk 00:02:56]} {[%emt 00:00:05]} 14. Bxg7 Kxg7 {[%clk 00:02:57]} 15. cxd5
{[%clk 00:02:11]} {[%emt 00:00:28]} Bxd5 {[%clk 00:02:51]} {[%emt 00:00:08]} 16.
Bxd5 {[%clk 00:02:02]} {[%emt 00:00:11]} exd5 {[%clk 00:02:52]} {[%emt
00:00:01]} 17. d4 {[%clk 00:02:03]} {[%emt 00:00:01]} Rc8 {[%clk 00:02:44]}
{[%emt 00:00:09]} 18. Nf3 {[%clk 00:02:03]} {[%emt 00:00:03]} Nf6 {[%clk
00:02:35]} {[%emt 00:00:10]} 19. Kg2 {[%clk 00:02:01]} {[%emt 00:00:04]} Re8
{[%clk 00:02:36]} {[%emt 00:00:02]} 20. Qb2 {[%clk 00:01:51]} {[%emt 00:00:13]}
c4 {[%clk 00:02:17]} {[%emt 00:00:21]} 21. Rac1 {[%clk 00:01:51]} {[%emt
00:00:02]} b5 {[%clk 00:02:18]} 22. a4 {[%clk 00:01:51]} {[%emt 00:00:02]} a6
{[%clk 00:02:19]} 23. axb5 {[%clk 00:01:48]} {[%emt 00:00:05]} axb5 {[%clk
00:02:20]} {[%emt 00:00:02]} 24. Ne5 {[%clk 00:01:47]} {[%emt 00:00:02]} Nd7
{[%clk 00:02:15]} {[%emt 00:00:07]} 25. bxc4 {[%clk 00:01:38]} {[%emt
00:00:11]} bxc4 {[%clk 00:02:02]} {[%emt 00:00:16]} 26. Rfd1 {[%clk 00:01:11]}
{[%emt 00:00:28]} f6 {[%clk 00:01:46]} {[%emt 00:00:18]} 27. Nf3 {[%clk
00:01:08]} {[%emt 00:00:05]} Rb8 {[%clk 00:01:45]} {[%emt 00:00:03]} 28. Qc2
{[%clk 00:01:07]} {[%emt 00:00:03]} Rb3 {[%clk 00:01:40]} {[%emt 00:00:07]} 29.
Ra1 {[%clk 00:01:07]} {[%emt 00:00:02]} Qb6 {[%clk 00:01:37]} {[%emt 00:00:06]}
30. Ra2 {[%clk 00:01:07]} Rb8 {[%clk 00:01:25]} {[%emt 00:00:14]} 31. Rda1
{[%clk 00:01:05]} {[%emt 00:00:04]} Rb7 {[%clk 00:01:24]} {[%emt 00:00:03]} 32.
e4 {[%clk 00:01:03]} {[%emt 00:00:04]} Qc6 {[%clk 00:00:50]} {[%emt 00:00:36]}
33. e5 {[%clk 00:00:55]} {[%emt 00:00:10]} fxe5 {[%clk 00:00:39]} {[%emt
00:00:14]} 34. Ra6 {[%clk 00:00:56]} {[%emt 00:00:01]} R7b6 {[%clk 00:00:25]}
{[%emt 00:00:16]} 35. Ra7 {[%clk 00:00:57]} Rb7 {[%clk 00:00:26]} 36. R1a6
{[%clk 00:00:40]} {[%emt 00:00:19]} R3b6 {[%clk 00:00:27]} {[%emt 00:00:01]} 37.
Rxb7 {[%clk 00:00:30]} {[%emt 00:00:12]} Qxb7 {[%clk 00:00:27]} {[%emt
00:00:02]} 38. Rxb6 {[%clk 00:00:30]} {[%emt 00:00:02]} Qxb6 {[%clk 00:00:28]}
{[%emt 00:00:01]} 39. dxe5 {[%clk 00:00:31]} {[%emt 00:00:02]} Qb3 {[%clk
00:00:25]} {[%emt 00:00:05]} 40. Qd2 {[%clk 00:00:28]} {[%emt 00:00:04]} c3
{[%clk 00:00:19]} {[%emt 00:00:08]} 41. Qg5 {[%clk 00:00:27]} {[%emt 00:00:03]}
Qb4 {[%clk 00:00:19]} {[%emt 00:00:03]} 42. e6 {[%clk 00:00:26]} {[%emt
00:00:02]} Nf6 {[%clk 00:00:20]} {[%emt 00:00:02]} 43. Qe5 {[%clk 00:00:24]}
{[%emt 00:00:03]} Qe4 {[%clk 00:00:14]} {[%emt 00:00:09]} 44. Qc7+ {[%clk
00:00:21]} {[%emt 00:00:04]} Kh6 {[%clk 00:00:15]} {[%emt 00:00:01]} 45. Qxc3
{[%clk 00:00:10]} {[%emt 00:00:14]} Qxe6 {[%clk 00:00:16]} 46. Nd4 {[%clk
00:00:07]} {[%emt 00:00:04]} Qe4+ {[%clk 00:00:17]} 47. f3 {[%clk 00:00:09]}
Qe5 {[%clk 00:00:15]} {[%emt 00:00:03]} 48. Qd2+ {[%clk 00:00:06]} {[%emt
00:00:05]} Kg7 {[%clk 00:00:15]} {[%emt 00:00:02]} 49. Nc6 {[%clk 00:00:06]}
{[%emt 00:00:02]} Qd6 {[%clk 00:00:15]} {[%emt 00:00:02]} 50. Nd4 {[%clk
00:00:07]} Qe5 {[%clk 00:00:17]} 51. Ne2 {[%clk 00:00:07]} {[%emt 00:00:02]} h5
{[%clk 00:00:17]} {[%emt 00:00:02]} 52. h4 {[%clk 00:00:08]} {[%emt 00:00:01]}
Qd6 {[%clk 00:00:18]} {[%emt 00:00:01]} 53. Qd4 {[%clk 00:00:08]} {[%emt
00:00:02]} Qe6 {[%clk 00:00:19]} {[%emt 00:00:01]} 54. Nf4 {[%clk 00:00:09]}
Qd6 {[%clk 00:00:20]} {[%emt 00:00:01]} 55. Nh3 {[%clk 00:00:10]} {[%emt
00:00:02]} Qa3 {[%clk 00:00:19]} {[%emt 00:00:02]} 56. Ng5 {[%clk 00:00:10]}
{[%emt 00:00:02]} Qa2+ {[%clk 00:00:21]} 57. Kh3 {[%clk 00:00:11]} {[%emt
00:00:02]} Qb1 {[%clk 00:00:20]} {[%emt 00:00:03]} 58. Ne6+ {[%clk 00:00:11]}
{[%emt 00:00:02]} Kf7 {[%clk 00:00:21]} 59. Ng5+ {[%clk 00:00:12]} Kg7 {[%clk
00:00:23]} 60. Qa7+ {[%clk 00:00:13]} {[%emt 00:00:02]} Kh8 {[%clk 00:00:21]}
{[%emt 00:00:03]} 61. Kg2 {[%clk 00:00:05]} {[%emt 00:00:10]} Qc2+ {[%clk
00:00:22]} {[%emt 00:00:01]} 62. Qf2 {[%clk 00:00:06]} {[%emt 00:00:02]} Qxf2+
{[%clk 00:00:23]} {[%emt 00:00:01]} 63. Kxf2 {[%clk 00:00:07]} Kg7 {[%clk
00:00:23]} {[%emt 00:00:01]} 64. Ke3 {[%clk 00:00:08]} Nd7 {[%clk 00:00:24]} 65.
Kd4 {[%clk 00:00:09]} Nb6 {[%clk 00:00:26]} 66. Kc5 {[%clk 00:00:08]} {[%emt
00:00:03]} Na4+ {[%clk 00:00:27]} {[%emt 00:00:01]} 67. Kxd5 {[%clk 00:00:09]}
Kf6 {[%clk 00:00:28]} {[%emt 00:00:01]} 68. Ke4 {[%clk 00:00:08]} {[%emt
00:00:02]} Nc3+ {[%clk 00:00:30]} 69. Kf4 {[%clk 00:00:09]} {[%emt 00:00:02]}
Nd5+ {[%clk 00:00:31]} 70. Ke4 {[%clk 00:00:10]} Nc3+ {[%clk 00:00:33]} 71. Kd3
{[%clk 00:00:12]} Nd5 {[%clk 00:00:34]} 72. Ne4+ {[%clk 00:00:13]} Ke5 {[%clk
00:00:35]} 73. Nf2 {[%clk 00:00:13]} {[%emt 00:00:02]} Kf5 {[%clk 00:00:34]}
{[%emt 00:00:03]} 74. Nd1 {[%clk 00:00:14]} Nb4+ {[%clk 00:00:36]} {[%emt
00:00:02]} 75. Ke3 {[%clk 00:00:15]} Nd5+ {[%clk 00:00:37]} 1-0

[Event "Blixt-SM 2025"]
[Site "Norrköping, Sweden"]
[Date "2025.09.26"]
[Round "2.3"]
[White "Religa, Marek"]
[Black "Persson, Richard"]
[Result "1-0"]
[TimeControl "3 min + 2 sec/move"]
[BlackTitle "CM"]
[WhiteElo "2207"]
[BlackElo "2106"]

1. e4 {[%clk 00:03:04]} c6 {[%clk 00:03:00]} {[%emt 00:00:04]} 2. c4 {[%clk
00:03:05]} {[%emt 00:00:01]} d5 {[%clk 00:02:57]} {[%emt 00:00:04]} 3. exd5
{[%clk 00:03:06]} {[%emt 00:00:02]} cxd5 {[%clk 00:02:58]} {[%emt 00:00:01]} 4.
cxd5 {[%clk 00:03:07]} Nf6 {[%clk 00:02:53]} {[%emt 00:00:07]} 5. Nc3 {[%clk
00:03:07]} {[%emt 00:00:02]} g6 {[%clk 00:02:44]} {[%emt 00:00:10]} 6. Bc4
{[%clk 00:03:07]} {[%emt 00:00:03]} Bg7 {[%clk 00:02:44]} {[%emt 00:00:01]} 7.
Nf3 {[%clk 00:03:07]} {[%emt 00:00:03]} O-O {[%clk 00:02:43]} {[%emt 00:00:03]}
8. O-O {[%clk 00:03:05]} {[%emt 00:00:04]} Nbd7 {[%clk 00:02:38]} {[%emt
00:00:07]} 9. d3 {[%clk 00:03:07]} Nb6 {[%clk 00:02:20]} {[%emt 00:00:19]} 10.
Qb3 {[%clk 00:03:08]} {[%emt 00:00:02]} Bg4 {[%clk 00:01:56]} {[%emt 00:00:25]}
11. Ne5 {[%clk 00:03:09]} {[%emt 00:00:01]} Bd7 {[%clk 00:01:55]} {[%emt
00:00:03]} 12. Re1 {[%clk 00:03:10]} {[%emt 00:00:01]} Rc8 {[%clk 00:01:55]}
{[%emt 00:00:03]} 13. h3 {[%clk 00:03:03]} {[%emt 00:00:08]} Qc7 {[%clk
00:01:39]} {[%emt 00:00:18]} 14. Bf4 {[%clk 00:02:48]} {[%emt 00:00:17]} Qd8
{[%clk 00:01:08]} {[%emt 00:00:33]} 15. Re2 {[%clk 00:02:17]} {[%emt 00:00:34]}
Ne8 {[%clk 00:00:59]} {[%emt 00:00:10]} 16. Rae1 {[%clk 00:02:06]} {[%emt
00:00:13]} Bf6 {[%clk 00:00:52]} {[%emt 00:00:08]} 17. Ne4 {[%clk 00:01:53]}
{[%emt 00:00:16]} Nd6 {[%clk 00:00:28]} {[%emt 00:00:27]} 18. Nxf6+ {[%clk
00:01:18]} {[%emt 00:00:36]} exf6 {[%clk 00:00:28]} {[%emt 00:00:01]} 19. Nxg6
{[%clk 00:01:11]} {[%emt 00:00:11]} Ndxc4 {[%clk 00:00:24]} {[%emt 00:00:09]}
20. Ne7+ {[%clk 00:01:11]} {[%emt 00:00:02]} Kg7 {[%clk 00:00:24]} {[%emt
00:00:02]} 21. dxc4 {[%clk 00:00:31]} {[%emt 00:00:42]} Rxc4 {[%clk 00:00:19]}
{[%emt 00:00:07]} 22. Qg3+ {[%clk 00:00:32]} Kh8 {[%clk 00:00:19]} {[%emt
00:00:02]} 23. Bh6 {[%clk 00:00:20]} {[%emt 00:00:15]} Bg4 {[%clk 00:00:07]}
{[%emt 00:00:14]} 24. Bxf8 {[%clk 00:00:16]} {[%emt 00:00:06]} Qxf8 {[%clk
00:00:06]} {[%emt 00:00:03]} 25. hxg4 {[%clk 00:00:17]} {[%emt 00:00:02]} Qg7
{[%clk 00:00:05]} {[%emt 00:00:03]} 26. Nf5 {[%clk 00:00:16]} {[%emt 00:00:02]}
1-0

[Event "Blixt-SM 2025"]
[Site "Norrköping, Sweden"]
[Date "2025.09.26"]
[Round "3.9"]
[White "Smith, Axel"]
[Black "Tornberg, Carlos"]
[Result "0-1"]
[TimeControl "3 min + 2 sec/move"]
[WhiteTitle "GM"]
[WhiteElo "2431"]
[BlackElo "2053"]

1. c4 {[%clk 00:03:03]} c5 {[%clk 00:03:04]} 2. Nf3 {[%clk 00:03:03]} {[%emt
00:00:02]} Nc6 {[%clk 00:03:03]} {[%emt 00:00:02]} 3. d4 {[%clk 00:03:05]} cxd4
{[%clk 00:03:01]} {[%emt 00:00:05]} 4. Nxd4 {[%clk 00:03:06]} g6 {[%clk
00:03:02]} {[%emt 00:00:02]} 5. e4 {[%clk 00:03:03]} {[%emt 00:00:05]} Bg7
{[%clk 00:02:58]} {[%emt 00:00:05]} 6. Be3 {[%clk 00:03:04]} {[%emt 00:00:02]}
Nf6 {[%clk 00:02:54]} {[%emt 00:00:06]} 7. Nc3 {[%clk 00:03:05]} d6 {[%clk
00:02:54]} {[%emt 00:00:02]} 8. Be2 {[%clk 00:03:04]} {[%emt 00:00:02]} O-O
{[%clk 00:02:51]} {[%emt 00:00:05]} 9. O-O {[%clk 00:02:54]} {[%emt 00:00:12]}
Bd7 {[%clk 00:02:51]} {[%emt 00:00:02]} 10. h3 {[%clk 00:02:40]} {[%emt
00:00:17]} Rc8 {[%clk 00:02:39]} {[%emt 00:00:14]} 11. Nc2 {[%clk 00:02:32]}
{[%emt 00:00:10]} h5 {[%clk 00:01:39]} {[%emt 00:01:02]} 12. Qd2 {[%clk
00:02:28]} {[%emt 00:00:05]} Kh7 {[%clk 00:01:38]} {[%emt 00:00:04]} 13. Rac1
{[%clk 00:02:19]} {[%emt 00:00:11]} Qa5 {[%clk 00:01:27]} {[%emt 00:00:13]} 14.
a3 {[%clk 00:02:03]} {[%emt 00:00:18]} Ne5 {[%clk 00:01:04]} {[%emt 00:00:24]}
15. b3 {[%clk 00:01:58]} {[%emt 00:00:08]} Bc6 {[%clk 00:00:56]} {[%emt
00:00:10]} 16. f4 {[%clk 00:01:49]} {[%emt 00:00:10]} Ned7 {[%clk 00:00:55]}
{[%emt 00:00:04]} 17. Bf3 {[%clk 00:01:32]} {[%emt 00:00:18]} Qd8 {[%clk
00:00:35]} {[%emt 00:00:22]} 18. Nd4 {[%clk 00:01:25]} {[%emt 00:00:10]} Nc5
{[%clk 00:00:35]} {[%emt 00:00:02]} 19. Nxc6 {[%clk 00:01:24]} {[%emt
00:00:03]} bxc6 {[%clk 00:00:22]} {[%emt 00:00:14]} 20. Rb1 {[%clk 00:01:19]}
{[%emt 00:00:07]} Ne6 {[%clk 00:00:19]} {[%emt 00:00:06]} 21. b4 {[%clk
00:01:11]} {[%emt 00:00:09]} a5 {[%clk 00:00:18]} {[%emt 00:00:04]} 22. Rfc1
{[%clk 00:00:49]} {[%emt 00:00:24]} Nd7 {[%clk 00:00:18]} {[%emt 00:00:02]} 23.
Qf2 {[%clk 00:00:34]} {[%emt 00:00:16]} axb4 {[%clk 00:00:16]} {[%emt
00:00:04]} 24. axb4 c5 25. b5 {[%clk 00:00:27]} {[%emt 00:00:11]} Nb6 {[%clk
00:00:14]} {[%emt 00:00:06]} 26. Nd5 {[%clk 00:00:26]} {[%emt 00:00:03]} Nd4
{[%clk 00:00:13]} {[%emt 00:00:03]} 27. Kh2 {[%clk 00:00:22]} {[%emt 00:00:06]}
Ra8 {[%clk 00:00:14]} {[%emt 00:00:01]} 28. Nxb6 {[%clk 00:00:17]} {[%emt
00:00:07]} Qxb6 {[%clk 00:00:15]} 29. Ra1 {[%clk 00:00:17]} {[%emt 00:00:03]}
Nxf3+ {[%clk 00:00:14]} {[%emt 00:00:02]} 30. Qxf3 {[%clk 00:00:12]} {[%emt
00:00:06]} Rxa1 {[%clk 00:00:15]} {[%emt 00:00:01]} 31. Rc2 {[%clk 00:00:12]}
{[%emt 00:00:03]} Rfa8 {[%clk 00:00:13]} {[%emt 00:00:04]} 32. f5 {[%clk
00:00:11]} {[%emt 00:00:03]} R8a3 {[%clk 00:00:10]} {[%emt 00:00:05]} 33. Re2
{[%clk 00:00:10]} {[%emt 00:00:03]} Be5+ {[%clk 00:00:09]} {[%emt 00:00:02]} 34.
g3 {[%clk 00:00:11]} R1a2 {[%clk 00:00:10]} {[%emt 00:00:01]} 35. Kg2 {[%clk
00:00:10]} {[%emt 00:00:03]} Rxe2+ {[%clk 00:00:11]} {[%emt 00:00:02]} 36. Qxe2
{[%clk 00:00:11]} Qa5 {[%clk 00:00:11]} 37. fxg6+ {[%clk 00:00:11]} {[%emt
00:00:02]} fxg6 {[%clk 00:00:12]} 38. Qf3 {[%clk 00:00:12]} {[%emt 00:00:02]}
Ra2+ {[%clk 00:00:09]} {[%emt 00:00:05]} 39. Bf2 {[%clk 00:00:12]} {[%emt
00:00:01]} Qd2 {[%clk 00:00:08]} {[%emt 00:00:03]} 40. Qf7+ {[%clk 00:00:13]}
{[%emt 00:00:02]} Bg7 {[%clk 00:00:10]} 41. h4 {[%clk 00:00:12]} {[%emt
00:00:03]} Qe2 {[%clk 00:00:08]} {[%emt 00:00:03]} 42. e5 {[%clk 00:00:12]}
{[%emt 00:00:03]} Qe4+ {[%clk 00:00:09]} {[%emt 00:00:01]} 43. Kh2 {[%clk
00:00:11]} {[%emt 00:00:03]} Qxe5 {[%clk 00:00:08]} {[%emt 00:00:02]} 44. b6
{[%clk 00:00:08]} {[%emt 00:00:06]} Qf6 {[%clk 00:00:09]} 45. Qxf6 {[%clk
00:00:03]} {[%emt 00:00:07]} Bxf6 {[%clk 00:00:09]} {[%emt 00:00:01]} 46. b7
{[%clk 00:00:04]} {[%emt 00:00:02]} Rxf2+ {[%clk 00:00:10]} {[%emt 00:00:01]}
47. Kh3 {[%clk 00:00:05]} Rb2 {[%clk 00:00:10]} {[%emt 00:00:01]} 48. g4 {[%clk
00:00:06]} hxg4+ {[%clk 00:00:10]} {[%emt 00:00:02]} 49. Kxg4 {[%clk 00:00:07]}
{[%emt 00:00:01]} Rxb7 {[%clk 00:00:11]} {[%emt 00:00:02]} 50. Kf4 {[%clk
00:00:07]} {[%emt 00:00:01]} Bxh4 {[%clk 00:00:11]} {[%emt 00:00:03]} 51. Kg4
{[%clk 00:00:08]} Rb4 {[%clk 00:00:12]} {[%emt 00:00:01]} 52. Kh3 {[%clk
00:00:08]} {[%emt 00:00:01]} Rxc4 {[%clk 00:00:13]} {[%emt 00:00:01]} 53. Kh2
{[%clk 00:00:09]} Rg4 {[%clk 00:00:14]} 54. Kh3 {[%clk 00:00:11]} Rd4 {[%clk
00:00:13]} {[%emt 00:00:04]} 55. Kh2 {[%clk 00:00:12]} Bf6 {[%clk 00:00:14]}
{[%emt 00:00:01]} 56. Kh3 {[%clk 00:00:12]} {[%emt 00:00:01]} c4 {[%clk
00:00:15]} 57. Kg3 {[%clk 00:00:14]} c3 {[%clk 00:00:17]} {[%emt 00:00:02]} 58.
Kf3 {[%clk 00:00:14]} {[%emt 00:00:01]} c2 {[%clk 00:00:18]} {[%emt 00:00:01]}
59. Ke2 {[%clk 00:00:15]} c1=Q {[%clk 00:00:17]} {[%emt 00:00:03]} 60. Kf3
{[%clk 00:00:15]} Qc3+ {[%clk 00:00:17]} {[%emt 00:00:02]} 61. Ke2 {[%clk
00:00:16]} Rd2+ {[%clk 00:00:18]} {[%emt 00:00:02]} 62. Kf1 {[%clk 00:00:15]}
{[%emt 00:00:02]} Qc1# {[%clk 00:00:19]} {[%emt 00:00:03]} 0-1